[Event "Titled Tuesday Blitz July 18 Late 2023"]
[White "Voege, Tobias"]
[Black "Grigoriants, Sergey"]
[WhiteFideId "1270513"]
[BlackFideId "4130804"]
[WhiteElo "2545"]
[BlackElo "2922"]
[Result "1-0"]
[Round "2"]
[TimeControl "180+2"]
[Date "2023.07.18"]
[WhiteClock "0:00:17"]
[BlackClock "0:00:00"]
[Board "28"]

1. e4 {[%clk 0:03:00]}  c5 {[%clk 0:02:54]} 2. Nf3 {[%clk 0:03:00]}  Nc6 {[%clk 0:02:55]} 3. d4 {[%clk 0:02:59]}  cxd4 {[%clk 0:02:54]} 4. Nxd4 {[%clk 0:03:00]}  Nf6 {[%clk 0:02:53]} 5. Nc3 {[%clk 0:03:00]}  d6 {[%clk 0:02:53]} 6. Bc4 {[%clk 0:02:53]}  e6 {[%clk 0:02:53]} 7. O-O {[%clk 0:02:50]}  a6 {[%clk 0:02:52]} 8. a4 {[%clk 0:02:49]}  Be7 {[%clk 0:02:52]} 9. Be3 {[%clk 0:02:46]}  O-O {[%clk 0:02:51]} 10. h3 {[%clk 0:02:41]}  h6 {[%clk 0:02:35]} 11. Qe2 {[%clk 0:02:27]}  Re8 {[%clk 0:02:31]} 12. Rad1 {[%clk 0:02:21]}  Qc7 {[%clk 0:02:31]} 13. Ba2 {[%clk 0:02:07]}  Bf8 {[%clk 0:02:26]} 14. f4 {[%clk 0:02:05]}  Nb4 {[%clk 0:02:09]} 15. Bb3 {[%clk 0:02:00]}  b6 {[%clk 0:02:06]} 16. Bf2 {[%clk 0:01:24]}  Nd7 {[%clk 0:01:44]} 17. f5 {[%clk 0:00:46]}  Nc5 {[%clk 0:01:41]} 18. fxe6 {[%clk 0:00:41]}  fxe6 {[%clk 0:01:36]} 19. Bc4 {[%clk 0:00:31]}  Bb7 {[%clk 0:01:26]} 20. Bg3 {[%clk 0:00:26]}  Qd7 {[%clk 0:01:15]} 21. Qg4 {[%clk 0:00:20]}  Rad8 {[%clk 0:01:10]} 22. Nf5 {[%clk 0:00:20]}  Kh7 {[%clk 0:00:56]} 23. Nxd6 {[%clk 0:00:20]}  Bxd6 {[%clk 0:00:44]} 24. Rxd6 {[%clk 0:00:21]}  Qe7 {[%clk 0:00:42]} 25. Rfd1 {[%clk 0:00:20]}  Nxc2 {[%clk 0:00:37]} 26. Bh4 {[%clk 0:00:18]}  Qxd6 {[%clk 0:00:28]} 27. Rxd6 {[%clk 0:00:18]}  Rxd6 {[%clk 0:00:29]} 28. e5 {[%clk 0:00:19]}  Rd4 {[%clk 0:00:27]} 29. Qe2 {[%clk 0:00:16]}  Rxh4 {[%clk 0:00:25]} 30. Qxc2+ {[%clk 0:00:17]}  Kh8 {[%clk 0:00:23]} 31. Ba2 {[%clk 0:00:16]}  Rd4 {[%clk 0:00:20]} 32. Bb1 {[%clk 0:00:15]}  Ne4 {[%clk 0:00:15]} 33. Ba2 {[%clk 0:00:14]}  Rd2 {[%clk 0:00:13]} 34. Qb3 {[%clk 0:00:15]}  Nxc3 {[%clk 0:00:11]} 35. Qxc3 {[%clk 0:00:16]}  Rxg2+ {[%clk 0:00:11]} 36. Kf1 {[%clk 0:00:16]}  Rf8+ {[%clk 0:00:11]} 37. Ke1 {[%clk 0:00:16]}  Bd5 {[%clk 0:00:05]} 38. Bxd5 {[%clk 0:00:16]}  exd5 {[%clk 0:00:06]} 39. e6 {[%clk 0:00:16]}  Re8 {[%clk 0:00:06]} 40. Qc6 {[%clk 0:00:16]}  Re7 {[%clk 0:00:03]} 41. Qd6 {[%clk 0:00:16]}  Re8 {[%clk 0:00:00]} 42. Qd7 {[%clk 0:00:17]} 1-0


[Site "https://www.chess.com"]

[Event "Titled Tuesday Blitz July 18 Late 2023"]
[White "Rengifo Blancas, Renzo Jhonathan"]
[Black "Tang, Andrew"]
[WhiteFideId "3807185"]
[BlackFideId "2059630"]
[WhiteElo "2538"]
[BlackElo "2879"]
[Result "0-1"]
[Round "2"]
[TimeControl "180+2"]
[Date "2023.07.18"]
[WhiteClock "0:01:29"]
[BlackClock "0:02:08"]
[Board "31"]

1. e4 {[%clk 0:02:52]}  e5 {[%clk 0:02:59]} 2. Nf3 {[%clk 0:02:43]}  Nc6 {[%clk 0:02:58]} 3. d4 {[%clk 0:02:42]}  exd4 {[%clk 0:02:58]} 4. Bc4 {[%clk 0:02:41]}  Nf6 {[%clk 0:02:58]} 5. e5 {[%clk 0:02:42]}  d5 {[%clk 0:02:59]} 6. Bb5 {[%clk 0:02:42]}  Ne4 {[%clk 0:02:59]} 7. Nxd4 {[%clk 0:02:39]}  Bc5 {[%clk 0:03:00]} 8. Bxc6+ {[%clk 0:02:38]}  bxc6 {[%clk 0:03:00]} 9. Nc3 {[%clk 0:02:38]}  Qh4 {[%clk 0:02:19]} 10. g3 {[%clk 0:02:37]}  Nxg3 {[%clk 0:02:18]} 11. Nf3 {[%clk 0:01:51]}  Bxf2+ {[%clk 0:02:17]} 12. Kxf2 {[%clk 0:01:49]}  Ne4+ {[%clk 0:02:10]} 13. Ke3 {[%clk 0:01:29]}  Qf2+ {[%clk 0:02:09]} 14. Kf4 {[%clk 0:01:29]}  g5# {[%clk 0:02:08]} 0-1


[Site "https://www.chess.com"]

[Event "Titled Tuesday Blitz July 18 Late 2023"]
[White "Zhang, Derek"]
[Black "Perez Ponsa, Federico"]
[WhiteFideId "2087871"]
[BlackFideId "117927"]
[WhiteElo "2531"]
[BlackElo "2827"]
[Result "0-1"]
[Round "2"]
[TimeControl "180+2"]
[Date "2023.07.18"]
[WhiteClock "0:00:15"]
[BlackClock "0:00:21"]
[Board "38"]

1. Nf3 {[%clk 0:03:00]}  Nf6 {[%clk 0:02:56]} 2. c4 {[%clk 0:03:01]}  g6 {[%clk 0:02:56]} 3. Nc3 {[%clk 0:03:01]}  Bg7 {[%clk 0:02:55]} 4. e4 {[%clk 0:03:02]}  d6 {[%clk 0:02:56]} 5. d4 {[%clk 0:03:03]}  O-O {[%clk 0:02:56]} 6. h3 {[%clk 0:03:03]}  e5 {[%clk 0:02:56]} 7. d5 {[%clk 0:03:04]}  a5 {[%clk 0:02:50]} 8. g4 {[%clk 0:03:03]}  Na6 {[%clk 0:02:49]} 9. Be3 {[%clk 0:03:04]}  Nc5 {[%clk 0:02:41]} 10. Nd2 {[%clk 0:03:01]}  c6 {[%clk 0:02:38]} 11. Be2 {[%clk 0:02:59]}  a4 {[%clk 0:02:38]} 12. Bxc5 {[%clk 0:02:58]}  dxc5 {[%clk 0:02:38]} 13. Nf1 {[%clk 0:02:59]}  a3 {[%clk 0:02:30]} 14. b3 {[%clk 0:02:59]}  Qa5 {[%clk 0:02:31]} 15. Qd2 {[%clk 0:02:51]}  Bh6 {[%clk 0:02:31]} 16. Ne3 {[%clk 0:02:49]}  Bf4 {[%clk 0:02:29]} 17. O-O-O {[%clk 0:02:27]}  Rd8 {[%clk 0:02:20]} 18. Qc2 {[%clk 0:02:23]}  Bd7 {[%clk 0:01:39]} 19. Kb1 {[%clk 0:02:21]}  Be8 {[%clk 0:01:26]} 20. h4 {[%clk 0:02:17]}  h6 {[%clk 0:01:17]} 21. Rhg1 {[%clk 0:02:14]}  Kg7 {[%clk 0:01:16]} 22. g5 {[%clk 0:02:00]}  hxg5 {[%clk 0:01:14]} 23. hxg5 {[%clk 0:02:01]}  Nh7 {[%clk 0:01:15]} 24. Nf5+ {[%clk 0:01:48]}  gxf5 {[%clk 0:01:01]} 25. exf5 {[%clk 0:01:49]}  Nxg5 {[%clk 0:00:58]} 26. f6+ {[%clk 0:01:25]}  Kxf6 {[%clk 0:00:50]} 27. Rxg5 {[%clk 0:01:20]}  Bxg5 {[%clk 0:00:48]} 28. Ne4+ {[%clk 0:01:20]}  Ke7 {[%clk 0:00:36]} 29. Nxg5 {[%clk 0:01:12]}  cxd5 {[%clk 0:00:30]} 30. Qf5 {[%clk 0:00:51]}  Qc3 {[%clk 0:00:30]} 31. Qc2 {[%clk 0:00:37]}  Qxc2+ {[%clk 0:00:28]} 32. Kxc2 {[%clk 0:00:38]}  f6 {[%clk 0:00:28]} 33. Nf3 {[%clk 0:00:34]}  Bg6+ {[%clk 0:00:29]} 34. Kc1 {[%clk 0:00:34]}  dxc4 {[%clk 0:00:28]} 35. Rxd8 {[%clk 0:00:30]}  Rxd8 {[%clk 0:00:28]} 36. Bxc4 {[%clk 0:00:31]}  Be4 {[%clk 0:00:26]} 37. Nd2 {[%clk 0:00:30]}  Bc6 {[%clk 0:00:25]} 38. Be2 {[%clk 0:00:30]}  b5 {[%clk 0:00:26]} 39. Kc2 {[%clk 0:00:30]}  Rd4 {[%clk 0:00:26]} 40. Kc3 {[%clk 0:00:30]}  b4+ {[%clk 0:00:26]} 41. Kc2 {[%clk 0:00:30]}  Be4+ {[%clk 0:00:26]} 42. Kc1 {[%clk 0:00:28]}  Bd5 {[%clk 0:00:24]} 43. Bd1 {[%clk 0:00:27]}  f5 {[%clk 0:00:23]} 44. Nf1 {[%clk 0:00:27]}  Rf4 {[%clk 0:00:23]} 45. Ne3 {[%clk 0:00:26]}  Be4 {[%clk 0:00:21]} 46. Nc4 {[%clk 0:00:15]}  Kf6 {[%clk 0:00:21]} 0-1


[Site "https://www.chess.com"]

[Event "Titled Tuesday Blitz July 18 Late 2023"]
[White "Karacsonyi, Gellert"]
[Black "Graif, William"]
[WhiteFideId "764620"]
[BlackFideId "2609835"]
[WhiteElo "2815"]
[BlackElo "2530"]
[Result "1-0"]
[Round "2"]
[TimeControl "180+2"]
[Date "2023.07.18"]
[WhiteClock "0:00:42"]
[BlackClock "0:00:00"]
[Board "40"]

1. e4 {[%clk 0:03:00]}  e5 {[%clk 0:02:53]} 2. Nf3 {[%clk 0:03:00]}  Bc5 {[%clk 0:02:53]} 3. c3 {[%clk 0:02:54]}  d5 {[%clk 0:02:52]} 4. exd5 {[%clk 0:02:51]}  Nf6 {[%clk 0:02:52]} 5. Nxe5 {[%clk 0:02:27]}  O-O {[%clk 0:02:50]} 6. d4 {[%clk 0:02:25]}  Qxd5 {[%clk 0:02:50]} 7. Qf3 {[%clk 0:02:12]}  Bd6 {[%clk 0:02:48]} 8. Qxd5 {[%clk 0:02:04]}  Nxd5 {[%clk 0:02:48]} 9. Bc4 {[%clk 0:01:53]}  Be6 {[%clk 0:02:47]} 10. O-O {[%clk 0:01:49]}  Bxe5 {[%clk 0:02:44]} 11. dxe5 {[%clk 0:01:45]}  Nxc3 {[%clk 0:02:44]} 12. Nxc3 {[%clk 0:01:42]}  Bxc4 {[%clk 0:02:37]} 13. Rd1 {[%clk 0:01:43]}  Nc6 {[%clk 0:02:22]} 14. f4 {[%clk 0:01:42]}  Rad8 {[%clk 0:02:08]} 15. Be3 {[%clk 0:01:41]}  b6 {[%clk 0:01:56]} 16. b3 {[%clk 0:01:33]}  Bd3 {[%clk 0:01:10]} 17. Rd2 {[%clk 0:01:31]}  Rd7 {[%clk 0:01:03]} 18. Rc1 {[%clk 0:01:28]}  Rfd8 {[%clk 0:00:57]} 19. Kf2 {[%clk 0:01:26]}  Kf8 {[%clk 0:00:46]} 20. Nd1 {[%clk 0:01:17]}  Ne7 {[%clk 0:00:36]} 21. Nb2 {[%clk 0:01:15]}  c5 {[%clk 0:00:36]} 22. Nxd3 {[%clk 0:01:10]}  Rxd3 {[%clk 0:00:36]} 23. Rxd3 {[%clk 0:01:11]}  Rxd3 {[%clk 0:00:36]} 24. Ke2 {[%clk 0:01:12]}  Rd5 {[%clk 0:00:30]} 25. Rc4 {[%clk 0:01:10]}  h5 {[%clk 0:00:29]} 26. b4 {[%clk 0:01:10]}  cxb4 {[%clk 0:00:21]} 27. Rxb4 {[%clk 0:01:11]}  Ke8 {[%clk 0:00:17]} 28. Ra4 {[%clk 0:01:10]}  Nc6 {[%clk 0:00:15]} 29. h3 {[%clk 0:01:08]}  Kd7 {[%clk 0:00:12]} 30. g4 {[%clk 0:01:08]}  hxg4 {[%clk 0:00:13]} 31. hxg4 {[%clk 0:01:09]}  Ra5 {[%clk 0:00:11]} 32. Rxa5 {[%clk 0:01:02]}  Nxa5 {[%clk 0:00:12]} 33. Kd3 {[%clk 0:01:03]}  g6 {[%clk 0:00:10]} 34. Ke4 {[%clk 0:01:03]}  Nc4 {[%clk 0:00:10]} 35. Bc1 {[%clk 0:01:03]}  b5 {[%clk 0:00:08]} 36. Kd5 {[%clk 0:01:02]}  a6 {[%clk 0:00:06]} 37. f5 {[%clk 0:01:03]}  gxf5 {[%clk 0:00:06]} 38. gxf5 {[%clk 0:01:03]}  Nb6+ {[%clk 0:00:06]} 39. Kc5 {[%clk 0:01:04]}  Na4+ {[%clk 0:00:07]} 40. Kd4 {[%clk 0:01:03]}  Kc6 {[%clk 0:00:06]} 41. Ba3 {[%clk 0:01:01]}  Nb6 {[%clk 0:00:05]} 42. Bc5 {[%clk 0:00:53]}  Nd7 {[%clk 0:00:05]} 43. Bd6 {[%clk 0:00:53]}  a5 {[%clk 0:00:03]} 44. Be7 {[%clk 0:00:51]}  Nb6 {[%clk 0:00:00]} 45. Bd8 {[%clk 0:00:42]} 1-0


[Site "https://www.chess.com"]

[Event "Titled Tuesday Blitz July 18 Late 2023"]
[White "Bagrationi, Alexander"]
[Black "Oro, Faustino"]
[WhiteFideId "14104954"]
[BlackFideId "20000197"]
[WhiteElo "2527"]
[BlackElo "2793"]
[Result "1-0"]
[Round "2"]
[TimeControl "180+2"]
[Date "2023.07.18"]
[WhiteClock "0:00:02"]
[BlackClock "0:00:00"]
[Board "42"]

1. d4 {[%clk 0:02:59]}  Nf6 {[%clk 0:02:56]} 2. Nf3 {[%clk 0:02:57]}  e6 {[%clk 0:02:56]} 3. g3 {[%clk 0:02:58]}  Be7 {[%clk 0:02:55]} 4. Bg2 {[%clk 0:02:58]}  O-O {[%clk 0:02:56]} 5. O-O {[%clk 0:02:59]}  d5 {[%clk 0:02:56]} 6. b3 {[%clk 0:02:58]}  c5 {[%clk 0:02:56]} 7. Bb2 {[%clk 0:02:58]}  Nc6 {[%clk 0:02:55]} 8. e3 {[%clk 0:02:58]}  Qc7 {[%clk 0:02:53]} 9. Nbd2 {[%clk 0:02:56]}  Rd8 {[%clk 0:02:50]} 10. Qe2 {[%clk 0:02:56]}  b6 {[%clk 0:02:49]} 11. c4 {[%clk 0:02:56]}  Bb7 {[%clk 0:02:49]} 12. Rac1 {[%clk 0:02:55]}  Rac8 {[%clk 0:02:48]} 13. Rfd1 {[%clk 0:02:55]}  Qb8 {[%clk 0:02:47]} 14. cxd5 {[%clk 0:02:54]}  Nxd5 {[%clk 0:02:46]} 15. dxc5 {[%clk 0:02:54]}  Bxc5 {[%clk 0:02:46]} 16. Nc4 {[%clk 0:02:50]}  Bf8 {[%clk 0:02:30]} 17. Ng5 {[%clk 0:02:31]}  h6 {[%clk 0:02:25]} 18. Ne4 {[%clk 0:02:05]}  b5 {[%clk 0:01:50]} 19. Ncd2 {[%clk 0:01:55]}  a6 {[%clk 0:01:47]} 20. Qh5 {[%clk 0:01:44]}  Ndb4 {[%clk 0:01:33]} 21. Nf6+ {[%clk 0:01:14]}  gxf6 {[%clk 0:00:59]} 22. Bxf6 {[%clk 0:01:15]}  Rd5 {[%clk 0:00:50]} 23. Qg4+ {[%clk 0:01:06]}  Rg5 {[%clk 0:00:50]} 24. Bxg5 {[%clk 0:01:05]}  hxg5 {[%clk 0:00:51]} 25. Qxg5+ {[%clk 0:01:05]}  Bg7 {[%clk 0:00:50]} 26. Ne4 {[%clk 0:01:03]}  Qe5 {[%clk 0:00:44]} 27. Qxe5 {[%clk 0:00:52]}  Bxe5 {[%clk 0:00:44]} 28. a3 {[%clk 0:00:51]}  Nd5 {[%clk 0:00:40]} 29. Nc5 {[%clk 0:00:49]}  Ba8 {[%clk 0:00:39]} 30. Bxd5 {[%clk 0:00:46]}  exd5 {[%clk 0:00:38]} 31. Rxd5 {[%clk 0:00:47]}  Bb2 {[%clk 0:00:33]} 32. Rc2 {[%clk 0:00:47]}  Bxa3 {[%clk 0:00:33]} 33. Nxa6 {[%clk 0:00:48]}  Bb7 {[%clk 0:00:26]} 34. Nc5 {[%clk 0:00:46]}  Nb4 {[%clk 0:00:21]} 35. Rg5+ {[%clk 0:00:46]}  Kf8 {[%clk 0:00:21]} 36. Nd7+ {[%clk 0:00:31]}  Ke7 {[%clk 0:00:20]} 37. Rxc8 {[%clk 0:00:31]}  Bxc8 {[%clk 0:00:21]} 38. Nc5 {[%clk 0:00:29]}  Nc6 {[%clk 0:00:18]} 39. Nd3 {[%clk 0:00:26]}  b4 {[%clk 0:00:16]} 40. Rb5 {[%clk 0:00:25]}  Be6 {[%clk 0:00:16]} 41. Nc5 {[%clk 0:00:23]}  Bd5 {[%clk 0:00:16]} 42. e4 {[%clk 0:00:23]}  Nd4 {[%clk 0:00:16]} 43. Rb6 {[%clk 0:00:21]}  Bxb3 {[%clk 0:00:16]} 44. Nxb3 {[%clk 0:00:19]}  Nxb3 {[%clk 0:00:16]} 45. h4 {[%clk 0:00:20]}  Nd2 {[%clk 0:00:15]} 46. e5 {[%clk 0:00:19]}  b3 {[%clk 0:00:15]} 47. h5 {[%clk 0:00:18]}  b2 {[%clk 0:00:15]} 48. h6 {[%clk 0:00:19]}  Nf3+ {[%clk 0:00:11]} 49. Kg2 {[%clk 0:00:18]}  Nxe5 {[%clk 0:00:12]} 50. h7 {[%clk 0:00:18]}  Ng6 {[%clk 0:00:12]} 51. Rxg6 {[%clk 0:00:18]}  b1=Q {[%clk 0:00:12]} 52. h8=Q {[%clk 0:00:11]}  Qxg6 {[%clk 0:00:13]} 53. Qe5+ {[%clk 0:00:11]}  Kf8 {[%clk 0:00:12]} 54. Qb8+ {[%clk 0:00:08]}  Kg7 {[%clk 0:00:11]} 55. Qe5+ {[%clk 0:00:09]}  Kg8 {[%clk 0:00:11]} 56. Qe8+ {[%clk 0:00:08]}  Bf8 {[%clk 0:00:11]} 57. Qe2 {[%clk 0:00:08]}  Qc6+ {[%clk 0:00:11]} 58. Kh2 {[%clk 0:00:08]}  Bd6 {[%clk 0:00:11]} 59. Qg4+ {[%clk 0:00:08]}  Kf8 {[%clk 0:00:11]} 60. Qf5 {[%clk 0:00:08]}  Qb6 {[%clk 0:00:10]} 61. Kg2 {[%clk 0:00:07]}  Ke7 {[%clk 0:00:10]} 62. Qe4+ {[%clk 0:00:04]}  Kd8 {[%clk 0:00:10]} 63. Qd5 {[%clk 0:00:04]}  Ke7 {[%clk 0:00:10]} 64. Qe4+ {[%clk 0:00:05]}  Kf8 {[%clk 0:00:09]} 65. Qd5 {[%clk 0:00:05]}  Qc7 {[%clk 0:00:08]} 66. Qe4 {[%clk 0:00:05]}  Bc5 {[%clk 0:00:08]} 67. Qd5 {[%clk 0:00:05]}  Qb6 {[%clk 0:00:08]} 68. Qf3 {[%clk 0:00:03]}  Qb2 {[%clk 0:00:07]} 69. Kf1 {[%clk 0:00:03]}  Bd4 {[%clk 0:00:06]} 70. Kg2 {[%clk 0:00:03]}  Kg7 {[%clk 0:00:06]} 71. Qf5 {[%clk 0:00:04]}  Qd2 {[%clk 0:00:05]} 72. Qg4+ {[%clk 0:00:04]}  Kf6 {[%clk 0:00:05]} 73. Qf3+ {[%clk 0:00:05]}  Ke7 {[%clk 0:00:05]} 74. Qe4+ {[%clk 0:00:05]}  Kd6 {[%clk 0:00:05]} 75. Qf5 {[%clk 0:00:04]}  f6 {[%clk 0:00:04]} 76. Qf3 {[%clk 0:00:04]}  Ke5 {[%clk 0:00:04]} 77. Kf1 {[%clk 0:00:04]}  f5 {[%clk 0:00:03]} 78. Kg2 {[%clk 0:00:03]}  Qe1 {[%clk 0:00:02]} 79. g4 {[%clk 0:00:02]}  f4 {[%clk 0:00:00]} 80. g5 {[%clk 0:00:02]} 1-0


[Site "https://www.chess.com"]

[Event "Titled Tuesday Blitz July 18 Late 2023"]
[White "Tristan, Leonardo"]
[Black "ArtemDyachuk"]
[WhiteFideId "113816"]
[WhiteElo "2788"]
[BlackElo "2524"]
[Result "1-0"]
[Round "2"]
[TimeControl "180+2"]
[Date "2023.07.18"]
[WhiteClock "0:01:00"]
[BlackClock "0:00:00"]
[Board "43"]

1. d4 {[%clk 0:03:00]}  Nf6 {[%clk 0:02:58]} 2. Nf3 {[%clk 0:03:01]}  e6 {[%clk 0:02:57]} 3. Bf4 {[%clk 0:03:01]}  c5 {[%clk 0:02:55]} 4. c3 {[%clk 0:03:00]}  Nc6 {[%clk 0:02:54]} 5. e3 {[%clk 0:03:00]}  Be7 {[%clk 0:02:53]} 6. h3 {[%clk 0:03:00]}  O-O {[%clk 0:02:51]} 7. Nbd2 {[%clk 0:03:00]}  d5 {[%clk 0:02:47]} 8. Bd3 {[%clk 0:03:00]}  b6 {[%clk 0:02:46]} 9. O-O {[%clk 0:03:00]}  Bb7 {[%clk 0:02:46]} 10. Qe2 {[%clk 0:03:00]}  h6 {[%clk 0:02:44]} 11. Rfe1 {[%clk 0:03:00]}  a6 {[%clk 0:02:38]} 12. Rad1 {[%clk 0:02:59]}  b5 {[%clk 0:02:38]} 13. dxc5 {[%clk 0:02:52]}  Bxc5 {[%clk 0:02:36]} 14. e4 {[%clk 0:02:52]}  Ne7 {[%clk 0:02:25]} 15. e5 {[%clk 0:02:50]}  Nd7 {[%clk 0:02:21]} 16. Nd4 {[%clk 0:02:48]}  Re8 {[%clk 0:01:16]} 17. Qg4 {[%clk 0:02:39]}  Kh8 {[%clk 0:01:00]} 18. Qh5 {[%clk 0:02:39]}  Ng8 {[%clk 0:00:55]} 19. Qxf7 {[%clk 0:02:33]}  Nf8 {[%clk 0:00:41]} 20. Qxb7 {[%clk 0:01:40]}  Re7 {[%clk 0:00:40]} 21. Qc6 {[%clk 0:01:40]}  Rc7 {[%clk 0:00:40]} 22. Nxe6 {[%clk 0:01:40]}  Rxc6 {[%clk 0:00:29]} 23. Nxd8 {[%clk 0:01:41]}  Rxd8 {[%clk 0:00:29]} 24. Nb3 {[%clk 0:01:34]}  Ne6 {[%clk 0:00:21]} 25. Bg3 {[%clk 0:01:34]}  Bb6 {[%clk 0:00:20]} 26. Bf5 {[%clk 0:01:25]}  Rf8 {[%clk 0:00:14]} 27. Bxe6 {[%clk 0:01:21]}  Rxe6 {[%clk 0:00:15]} 28. Rxd5 {[%clk 0:01:19]}  Rg6 {[%clk 0:00:16]} 29. Nd4 {[%clk 0:01:15]}  Bc7 {[%clk 0:00:04]} 30. Rd7 {[%clk 0:01:07]}  Bb8 {[%clk 0:00:04]} 31. e6 {[%clk 0:01:02]}  Bxg3 {[%clk 0:00:03]} 32. fxg3 {[%clk 0:01:03]}  Rxg3 {[%clk 0:00:02]} 33. e7 {[%clk 0:01:03]}  Re8 {[%clk 0:00:02]} 34. Rd8 {[%clk 0:01:03]}  Nf6 {[%clk 0:00:03]} 35. Rxe8+ {[%clk 0:00:59]}  Nxe8 {[%clk 0:00:02]} 36. Rf1 {[%clk 0:01:00]}  Nf6 {[%clk 0:00:00]} 37. Rxf6 {[%clk 0:01:00]} 1-0


[Site "https://www.chess.com"]

[Event "Titled Tuesday Blitz July 18 Late 2023"]
[White "Schmakel, Sam"]
[Black "Garakov, Mikhael"]
[WhiteFideId "2039311"]
[BlackFideId "4169034"]
[WhiteElo "2763"]
[BlackElo "2518"]
[Result "0-1"]
[Round "2"]
[TimeControl "180+2"]
[Date "2023.07.18"]
[WhiteClock "0:00:00"]
[BlackClock "0:00:53"]
[Board "48"]

1. d4 {[%clk 0:03:00]}  c5 {[%clk 0:02:58]} 2. d5 {[%clk 0:03:00]}  g6 {[%clk 0:02:58]} 3. e4 {[%clk 0:02:58]}  Bg7 {[%clk 0:02:58]} 4. a4 {[%clk 0:02:58]}  d6 {[%clk 0:02:58]} 5. Bb5+ {[%clk 0:02:57]}  Bd7 {[%clk 0:02:58]} 6. Nf3 {[%clk 0:02:57]}  Nf6 {[%clk 0:02:58]} 7. Nc3 {[%clk 0:02:56]}  O-O {[%clk 0:02:57]} 8. h3 {[%clk 0:02:56]}  Bxb5 {[%clk 0:02:56]} 9. axb5 {[%clk 0:02:57]}  Nbd7 {[%clk 0:02:56]} 10. O-O {[%clk 0:02:55]}  Ne8 {[%clk 0:02:54]} 11. Qe2 {[%clk 0:02:45]}  Nb6 {[%clk 0:02:53]} 12. Bf4 {[%clk 0:02:42]}  Nc7 {[%clk 0:02:53]} 13. Rfd1 {[%clk 0:02:40]}  Qd7 {[%clk 0:02:51]} 14. e5 {[%clk 0:02:38]}  c4 {[%clk 0:02:41]} 15. Ra5 {[%clk 0:02:18]}  a6 {[%clk 0:02:29]} 16. Qe3 {[%clk 0:01:19]}  Nc8 {[%clk 0:02:19]} 17. b6 {[%clk 0:01:19]}  Ne8 {[%clk 0:02:17]} 18. Qd4 {[%clk 0:00:58]}  Qd8 {[%clk 0:02:14]} 19. Na4 {[%clk 0:00:51]}  dxe5 {[%clk 0:02:10]} 20. Bxe5 {[%clk 0:00:50]}  Bxe5 {[%clk 0:02:09]} 21. Nxe5 {[%clk 0:00:51]}  Ned6 {[%clk 0:02:08]} 22. Re1 {[%clk 0:00:37]}  Nf5 {[%clk 0:01:51]} 23. Qc5 {[%clk 0:00:31]}  Ncd6 {[%clk 0:01:51]} 24. Nc3 {[%clk 0:00:23]}  Rc8 {[%clk 0:01:49]} 25. Qb4 {[%clk 0:00:24]}  Nd4 {[%clk 0:01:47]} 26. Qa4 {[%clk 0:00:21]}  Qxb6 {[%clk 0:01:39]} 27. Ne4 {[%clk 0:00:08]}  Qxb2 {[%clk 0:01:05]} 28. Nxd6 {[%clk 0:00:08]}  exd6 {[%clk 0:01:05]} 29. Nxc4 {[%clk 0:00:09]}  Qc3 {[%clk 0:00:59]} 30. Qa1 {[%clk 0:00:00]}  Qxa1 {[%clk 0:00:53]} 0-1


[Site "https://www.chess.com"]

[Event "Titled Tuesday Blitz July 18 Late 2023"]
[White "Balague Camps, Marc"]
[Black "Priasmoro, Novendra"]
[WhiteFideId "2297914"]
[BlackFideId "7105029"]
[WhiteElo "2517"]
[BlackElo "2762"]
[Result "0-1"]
[Round "2"]
[TimeControl "180+2"]
[Date "2023.07.18"]
[WhiteClock "0:00:13"]
[BlackClock "0:00:08"]
[Board "49"]

1. d4 {[%clk 0:03:00]}  Nf6 {[%clk 0:02:59]} 2. c4 {[%clk 0:03:01]}  e6 {[%clk 0:02:57]} 3. Nc3 {[%clk 0:03:01]}  d5 {[%clk 0:02:57]} 4. cxd5 {[%clk 0:03:01]}  exd5 {[%clk 0:02:57]} 5. Bg5 {[%clk 0:03:02]}  Be6 {[%clk 0:02:57]} 6. e3 {[%clk 0:03:01]}  a6 {[%clk 0:02:55]} 7. Bd3 {[%clk 0:03:01]}  Nbd7 {[%clk 0:02:55]} 8. Nge2 {[%clk 0:03:02]}  Be7 {[%clk 0:02:56]} 9. Nf4 {[%clk 0:03:02]}  O-O {[%clk 0:02:51]} 10. Nxe6 {[%clk 0:03:01]}  fxe6 {[%clk 0:02:52]} 11. O-O {[%clk 0:03:01]}  c5 {[%clk 0:02:52]} 12. dxc5 {[%clk 0:02:56]}  Nxc5 {[%clk 0:02:51]} 13. Be2 {[%clk 0:02:56]}  h6 {[%clk 0:02:50]} 14. Bh4 {[%clk 0:02:56]}  Nfe4 {[%clk 0:02:51]} 15. Bxe7 {[%clk 0:02:53]}  Qxe7 {[%clk 0:02:52]} 16. Nxe4 {[%clk 0:02:52]}  Nxe4 {[%clk 0:02:52]} 17. Bd3 {[%clk 0:02:49]}  Nd6 {[%clk 0:02:35]} 18. Rc1 {[%clk 0:02:48]}  Rac8 {[%clk 0:02:33]} 19. Qg4 {[%clk 0:02:47]}  Qf6 {[%clk 0:02:31]} 20. Rxc8 {[%clk 0:02:43]}  Rxc8 {[%clk 0:02:32]} 21. h4 {[%clk 0:02:37]}  Kf7 {[%clk 0:02:15]} 22. h5 {[%clk 0:02:36]}  Qxb2 {[%clk 0:02:11]} 23. Rb1 {[%clk 0:02:24]}  Rc1+ {[%clk 0:02:10]} 24. Rxc1 {[%clk 0:02:24]}  Qxc1+ {[%clk 0:02:11]} 25. Kh2 {[%clk 0:02:25]}  Qc3 {[%clk 0:02:10]} 26. Qf4+ {[%clk 0:02:24]}  Ke7 {[%clk 0:02:10]} 27. Bg6 {[%clk 0:02:22]}  Qc4 {[%clk 0:02:03]} 28. Qe5 {[%clk 0:02:14]}  Qh4+ {[%clk 0:02:02]} 29. Kg1 {[%clk 0:02:15]}  Qf6 {[%clk 0:02:03]} 30. Qg3 {[%clk 0:02:02]}  b5 {[%clk 0:02:03]} 31. f3 {[%clk 0:01:41]}  a5 {[%clk 0:01:59]} 32. Qf2 {[%clk 0:01:41]}  b4 {[%clk 0:01:55]} 33. e4 {[%clk 0:01:38]}  Qa1+ {[%clk 0:01:22]} 34. Kh2 {[%clk 0:01:37]}  dxe4 {[%clk 0:01:16]} 35. Qa7+ {[%clk 0:01:26]}  Kf6 {[%clk 0:01:16]} 36. f4 {[%clk 0:01:21]}  Qc1 {[%clk 0:00:32]} 37. Qd4+ {[%clk 0:01:19]}  Ke7 {[%clk 0:00:32]} 38. Qxg7+ {[%clk 0:01:03]}  Kd8 {[%clk 0:00:33]} 39. Qf8+ {[%clk 0:01:03]}  Kd7 {[%clk 0:00:30]} 40. Qg7+ {[%clk 0:00:57]}  Kc6 {[%clk 0:00:27]} 41. Qf8 {[%clk 0:00:43]}  Kd5 {[%clk 0:00:12]} 42. Qxh6 {[%clk 0:00:40]}  e3 {[%clk 0:00:11]} 43. f5 {[%clk 0:00:37]}  exf5 {[%clk 0:00:05]} 44. Qf4 {[%clk 0:00:31]}  Qc3 {[%clk 0:00:05]} 45. h6 {[%clk 0:00:26]}  e2 {[%clk 0:00:05]} 46. h7 {[%clk 0:00:21]}  e1=Q {[%clk 0:00:06]} 47. Bf7+ {[%clk 0:00:15]}  Nxf7 {[%clk 0:00:06]} 48. Qxf5+ {[%clk 0:00:15]}  Qee5+ {[%clk 0:00:07]} 49. Qxe5+ {[%clk 0:00:15]}  Qxe5+ {[%clk 0:00:07]} 50. Kh3 {[%clk 0:00:13]}  Qh8 {[%clk 0:00:08]} 0-1


[Site "https://www.chess.com"]